bitfinex/quotes_ETHUSD_20250319
["timestamp","ask_amount","ask_price","bid_price","bid_amount"]
[1742417062580,9.61052326,2039.2,2039.1,0.0742796]
[1742417062786,14.51440326,2039.2,2039.1,0.0742796]
[1742417062987,10.47529431,2039.2,2039.1,0.0742796]
[1742417063487,15.43866798,2039.2,2039.1,0.0742796]
[1742417064859,16.24606798,2039.2,2039.1,0.0742796]
[1742417065057,24.06806798,2039.2,2039.1,0.0742796]
[1742417065674,5.71256,2038.7,2038.2,4.90612]
[1742417065859,4.03910895,2038.3,2038.2,4.90612]
[1742417066062,4.10966013,2038.3,2038.2,4.90612]
[1742417066668,4.10966013,2038.3,2038.0,11.9745385]
[1742417066984,4.10966013,2038.3,2038.0,11.9743485]
[1742417067179,4.03910895,2038.1,2038.0,11.9743485]
[1742417067586,0.07044241,2038.1,2038.0,11.9743485]
[1742417067969,4.03910895,2038.3,2038.1,4.90648]
[1742417068371,4.03910895,2038.3,2038.1,4.90637]
[1742417068800,4.03910895,2038.3,2038.2,4.90628]
[1742417070619,0.7681,2038.9,2038.3,0.8128]
[1742417070824,4.03910895,2038.5,2038.4,4.90559]
[1742417071114,4.03910895,2038.5,2038.4,4.9058]
[1742417073281,4.03910895,2038.7,2038.5,4.90556]
[1742417073467,4.03910895,2038.7,2038.5,4.90534]
[1742417073669,4.03910895,2038.7,2038.6,4.90532]
[1742417074714,4.03910895,2038.7,2038.5,4.90534]
[1742417074957,4.03910895,2038.7,2038.6,4.90532]
[1742417075243,4.03910895,2038.9,2038.8,4.90484]
[1742417075603,4.03910895,2039.1,2038.9,4.90449]
[1742417075837,4.66889553,2039.1,2038.9,4.90449]
[1742417076204,0.06927294,2039.0,2038.9,4.90449]
[1742417076514,0.06927294,2039.0,2038.8,4.90484]
[1742417076711,4.03910895,2038.9,2038.8,4.90484]
[1742417076931,4.10834291,2038.9,2038.7,5.73221]
[1742417077349,4.10834291,2038.9,2038.7,4.90501]
[1742417077547,4.10834291,2038.9,2038.7,4.90492]
[1742417077843,0.06923396,2038.9,2038.8,5.72374]
[1742417078253,0.06923396,2038.9,2038.8,7.32617742]
[1742417078552,4.03910895,2039.4,2038.9,4.9046]
[1742417078733,4.03910895,2039.4,2039.2,4.90378]
[1742417079255,4.03910895,2039.4,2039.1,4.90405]
[1742417079450,4.03910895,2039.4,2039.1,4.90394]
[1742417079846,4.03910895,2039.4,2039.2,4.90385]
[1742417080125,4.03910895,2039.4,2039.2,4.9038]
[1742417080307,4.03910895,2039.4,2039.1,4.90409]
[1742417080507,4.03910895,2039.2,2039.1,4.90409]
[1742417083136,4.03910895,2039.2,2039.0,4.90434]
[1742417083340,0.7781,2039.1,2038.9,10.9646]
[1742417083649,4.03910895,2039.0,2038.9,10.9646]
[1742417084310,4.03910895,2039.2,2039.0,9.80843]
[1742417084527,4.03910895,2039.2,2039.1,4.90412]
[1742417084719,4.03910895,2039.4,2039.3,4.90348]
[1742417084926,2.35090359,2039.5,2039.0,0.8302]
[1742417085239,4.03910895,2039.3,2039.2,4.9038]
[1742417085445,4.03910895,2039.3,2039.0,10.55652]
[1742417086553,4.03910895,2039.1,2039.0,9.72632]
[1742417087629,4.03910895,2039.3,2039.1,4.90391]
[1742417087830,4.03910895,2039.3,2039.2,4.90388]
[1742417088719,4.03910895,2039.4,2039.3,4.90356]
[1742417088930,0.55,2039.6,2039.4,4.9034]
[1742417089138,4.03910895,2039.8,2039.4,4.9034]
[1742417089317,0.7822,2039.9,2039.6,4.90273]
[1742417089660,4.03910895,2039.8,2039.5,5.67924]
[1742417089815,2.02621657,2039.9,2039.5,4.90315]
[1742417089816,4.03910895,2039.6,2039.5,4.90315]
[1742417090211,4.03910895,2039.6,2039.4,14.62858]
[1742417090444,4.03910895,2039.6,2039.5,4.90316]
[1742417090644,4.03910895,2039.6,2039.4,4.90329]
[1742417090952,0.06045062,2039.5,2039.4,4.90329]
[1742417093044,0.06045062,2039.5,2039.3,10.58328]
[1742417093248,0.06045062,2039.5,2039.4,4.9034]
[1742417095050,0.06045062,2039.5,2039.3,4.9036]
[1742417095248,0.06045062,2039.5,2039.3,9.80709]
[1742417095447,0.06045062,2039.5,2039.3,4.90349]
[1742417095629,0.06045062,2039.5,2039.4,4.9034]
[1742417098745,0.06045062,2039.5,2039.4,5.7074]
[1742417099541,0.47040658,2039.5,2039.3,4.90356]
[1742417099728,0.47040658,2039.5,2039.4,4.9034]
[1742417099930,0.06045062,2039.5,2039.4,4.9034]
[1742417100248,0.06045062,2039.5,2039.3,4.90356]
[1742417100548,4.03910895,2039.4,2039.3,4.90356]
[1742417100757,4.09957785,2039.4,2039.3,4.90356]
[1742417100951,4.90364,2039.3,2039.2,6.06]
[1742417101150,6.17457507,2039.3,2039.2,6.06]
[1742417101450,6.67585798,2039.3,2039.2,6.06]
[1742417101822,4.90391,2039.2,2038.8,4.90466]
[1742417102044,4.03910895,2038.9,2038.8,4.90466]
[1742417102429,4.09909479,2038.9,2038.7,4.90498]
[1742417102645,4.09909479,2038.9,2038.8,4.90484]
[1742417104753,0.05998584,2038.9,2038.8,4.90484]
[1742417104954,4.03910895,2039.1,2039.0,4.90436]
[1742417105158,4.09914078,2039.1,2039.0,4.90436]
[1742417105355,1.16185779,2039.3,2039.2,4.90388]
[1742417105356,4.03910895,2039.3,2039.2,4.90388]
[1742417105548,4.09906259,2039.3,2039.2,4.90388]
[1742417107061,0.05995364,2039.3,2039.2,4.90388]
[1742417107423,0.05995364,2039.3,2039.1,4.90403]
[1742417107424,4.03910895,2039.5,2039.4,4.9034]
[1742417107623,4.03910895,2039.5,2039.3,4.90355]
[1742417108323,5.01385585,2039.5,2039.4,4.9034]
[1742417108529,4.03910895,2039.5,2039.3,9.80706]
[1742417108729,4.03910895,2039.5,2039.3,4.90364]
[1742417109468,4.03910895,2039.5,2039.3,4.90349]
[1742417109635,8.94228895,2039.5,2039.2,6.06]
[1742417109963,4.03910895,2039.3,2039.2,6.06]
[1742417110155,9.44795362,2039.3,2039.2,6.06]
[1742417110330,4.54431362,2039.3,2039.2,6.06]
[1742417110529,9.99795362,2039.3,2039.2,6.06]
[1742417111136,5.09431362,2039.3,2039.2,6.06]
[1742417111356,5.09431362,2039.3,2039.0,4.90429]
[1742417111556,4.03910895,2039.1,2039.0,4.90429]
[1742417112332,4.03910895,2039.1,2038.9,4.90458]
[1742417112860,4.03910895,2039.1,2038.9,4.90444]
[1742417113064,4.03910895,2039.1,2038.9,4.90453]
[1742417113561,4.03910895,2039.1,2038.9,4.90446]
[1742417113859,4.03910895,2039.1,2039.0,4.90436]
[1742417114061,4.03910895,2039.1,2038.9,4.90446]
[1742417114062,3.0,2039.5,2039.3,4.90341]
[1742417114250,8.01142495,2039.5,2039.2,4.90387]
[1742417114562,4.03910895,2039.3,2039.1,4.90407]
[1742417114758,4.03910895,2039.2,2039.1,4.90407]
[1742417115133,4.03910895,2039.2,2039.0,4.90414]
[1742417115331,5.69356184,2039.2,2039.0,4.90414]
[1742417115539,5.69356184,2039.2,2038.9,4.90459]
[1742417115743,4.03910895,2039.0,2038.9,4.90459]
[1742417116464,4.03910895,2039.0,2038.8,4.90484]
[1742417116465,4.03910895,2039.0,2038.7,4.905]
[1742417116670,4.03910895,2038.8,2038.6,4.9053]
[1742417116836,4.03910895,2038.8,2038.6,4.90518]
[1742417117036,4.03910895,2038.8,2038.6,9.81036]
[1742417117253,4.03910895,2038.8,2038.6,4.90518]
[1742417117460,4.79930895,2038.8,2038.6,4.90518]
[1742417117859,4.79930895,2038.8,2038.5,15.87096]
[1742417118056,4.03910895,2038.6,2038.5,10.9654]
[1742417118244,4.03910895,2038.6,2038.5,4.9054]
[1742417118444,4.03910895,2038.8,2038.7,4.90485]
[1742417118938,4.03910895,2038.8,2038.5,4.90549]
[1742417119133,4.03910895,2038.6,2038.5,9.81087]
[1742417119338,4.03910895,2038.6,2038.5,4.90538]
[1742417120935,4.09875232,2038.6,2038.5,4.90538]
[1742417122692,3.88404032,2038.6,2038.5,4.90538]
[1742417122982,3.88404032,2038.6,2038.4,4.90579]
[1742417123265,3.88404032,2038.6,2038.5,4.90556]
[1742417124234,3.88404032,2038.6,2038.4,4.90566]
[1742417124440,3.88404032,2038.6,2038.4,4.90565]
[1742417124933,5.98558697,2038.6,2038.3,6.06]
[1742417125161,4.03910895,2038.4,2038.3,6.06]
[1742417125358,9.00421462,2038.4,2038.3,6.06]
[1742417126435,9.55421462,2038.4,2038.3,6.06]
[1742417126642,4.90612,2038.3,2038.0,0.2122785]
[1742417126841,4.03910895,2038.1,2038.0,5.1190285]
[1742417127351,4.09830694,2038.1,2038.0,0.2122785]
[1742417127880,9.00483694,2038.1,2038.0,0.2122785]
[1742417128078,4.09830694,2038.1,2038.0,0.2122785]
[1742417128371,4.09830694,2038.1,2038.0,5.1190485]
[1742417128836,0.05919799,2038.1,2038.0,7.16938535]
[1742417129040,4.03910895,2038.3,2038.2,4.90628]
[1742417129247,4.09844081,2038.3,2038.2,4.90628]
[1742417130336,0.05933186,2038.3,2038.2,4.90628]
[1742417130676,4.03910895,2038.5,2038.4,4.9058]
[1742417131141,4.03910895,2038.5,2038.4,5.6669]
[1742417131341,4.03910895,2038.7,2038.6,4.90532]
[1742417131537,6.09794206,2039.0,2038.4,3.397014]
[1742417131538,3.8083,2039.0,2038.7,4.90498]
[1742417131760,4.03910895,2038.9,2038.7,4.90499]
[1742417131965,4.03910895,2038.9,2038.8,4.90484]
[1742417134179,4.03910895,2038.9,2038.7,4.90492]
[1742417134480,4.03910895,2038.9,2038.7,9.80988]
[1742417134657,4.03910895,2038.9,2038.7,4.90492]
[1742417135883,0.7658,2038.8,2038.6,6.06]
[1742417136087,4.03910895,2038.7,2038.5,4.819]
[1742417136584,0.05943951,2038.6,2038.4,4.9056]
[1742417136774,4.03910895,2038.5,2038.3,4.90598]
[1742417136968,4.03910895,2038.5,2038.4,4.9058]
[1742417137195,4.09846759,2038.5,2038.4,4.9058]
[1742417137396,4.09846759,2038.5,2038.2,9.72528]
[1742417137553,4.03910895,2038.3,2038.2,4.90628]
[1742417137952,4.0983896,2038.3,2038.2,4.90628]
[1742417138587,4.0983896,2038.3,2038.1,10.96642]
[1742417139296,4.90629,2038.2,2038.0,0.2122785]
[1742417139446,4.03910895,2038.1,2038.0,0.2122785]
[1742417139650,4.09831161,2038.1,2038.0,0.2122785]
[1742417140054,4.09831161,2038.1,2038.0,5.1190485]
[1742417140257,4.09831161,2038.1,2038.0,0.2122785]
[1742417141189,4.09831161,2038.1,2038.0,5.1190485]
[1742417141758,0.05920266,2038.1,2038.0,6.20303335]
[1742417141965,3.0,2038.6,2038.2,4.90608]
[1742417142187,4.03910895,2038.4,2038.2,9.81229]
[1742417142387,4.03910895,2038.4,2038.3,4.90604]
[1742417143392,4.03910895,2038.6,2038.5,4.90551]
[1742417144566,3.8066,2039.0,2038.7,4.90503]
[1742417144866,4.03910895,2038.8,2038.6,4.90529]
[1742417146097,4.03910895,2038.8,2038.5,4.90553]
[1742417146303,4.03910895,2038.6,2038.5,4.90553]
[1742417146465,4.03910895,2038.6,2038.4,5.7302]
[1742417146666,4.85050895,2038.6,2038.3,6.06]
[1742417146865,4.03910895,2038.4,2038.3,6.06]
[1742417147082,4.03910895,2038.4,2038.3,4.90604]
[1742417148277,13.92393235,2039.2,2038.3,4.90604]
[1742417148278,4.03910895,2038.6,2038.5,5.72231]
[1742417148496,4.03910895,2038.8,2038.6,4.90521]
[1742417148806,4.03910895,2038.8,2038.6,9.81035]
[1742417149399,4.03910895,2038.8,2038.7,4.90508]
[1742417150978,4.09589883,2038.8,2038.7,4.90508]
[1742417152195,0.05678988,2038.8,2038.7,6.458337]
[1742417152492,0.05678988,2038.8,2038.7,13.348937]
[1742417152730,4.03910895,2039.0,2038.9,4.90456]
[1742417153079,4.0961117,2039.0,2038.9,4.90456]
[1742417153275,4.0961117,2039.0,2038.7,6.06]
[1742417153478,4.03910895,2038.8,2038.7,10.96504]
[1742417153926,4.09679922,2038.8,2038.7,6.06]
[1742417154435,4.74432942,2038.8,2038.7,6.06]
[1742417154781,4.09679922,2038.8,2038.7,6.06]
[1742417155379,4.09679922,2038.8,2038.6,4.90531]
[1742417156592,4.09679922,2038.8,2038.5,4.90556]
[1742417156799,4.03910895,2038.6,2038.5,4.90556]
[1742417156997,4.09644308,2038.6,2038.5,4.90556]
[1742417157679,4.09644308,2038.6,2038.4,20.68044]
[1742417157883,4.09644308,2038.6,2038.4,15.77466]
[1742417158391,4.09644308,2038.6,2038.4,20.68031]
[1742417159313,4.09644308,2038.6,2038.4,15.77462]
[1742417159719,4.09644308,2038.6,2038.4,15.7747]
[1742417160119,4.09644308,2038.6,2038.4,20.68036]
[1742417160294,4.09644308,2038.6,2038.4,6.05097]
[1742417161082,4.90562,2038.5,2038.2,4.817]
[1742417161287,4.03910895,2038.3,2038.1,16.54556]
[1742417161510,4.03910895,2038.3,2038.2,4.90628]
[1742417162414,5.69988,2038.8,2038.2,4.90628]
[1742417162415,4.03910895,2038.5,2038.4,4.90567]
[1742417162824,4.03910895,2038.7,2038.5,4.90535]
[1742417162996,4.03910895,2038.7,2038.6,4.90532]
[1742417163595,4.03910895,2038.8,2038.5,5.73855]
[1742417163795,4.03910895,2038.8,2038.7,4.90508]
[1742417164331,4.03910895,2038.8,2038.7,4.90493]
[1742417166237,4.09647038,2038.8,2038.7,4.90493]
[1742417166603,0.05736143,2038.8,2038.7,11.7299]
[1742417166800,4.03910895,2039.2,2038.9,4.90445]
[1742417167005,4.03910895,2039.0,2038.9,9.72145]
[1742417167215,4.09649141,2039.0,2038.9,9.72145]
[1742417167615,4.09649141,2039.0,2038.9,4.817]
[1742417167912,4.09649141,2039.0,2038.7,6.05097]
[1742417167913,4.90484,2038.8,2038.7,6.05097]
[1742417168118,4.93924209,2038.8,2038.7,6.05097]
[1742417168433,4.99656814,2038.8,2038.7,6.05097]
[1742417168739,5.81136814,2038.8,2038.7,6.05097]
[1742417169333,5.89114141,2038.8,2038.7,6.05097]
[1742417169510,4.911235,2038.8,2038.7,6.05097]
[1742417170038,4.911235,2038.8,2038.5,4.9054]
[1742417170238,4.03910895,2038.6,2038.5,4.9054]
[1742417170439,4.09620348,2038.6,2038.5,4.9054]
[1742417171912,4.09620348,2038.6,2038.4,6.05097]
[1742417172427,4.09620348,2038.6,2038.4,10.95674]
[1742417172636,4.09620348,2038.6,2038.4,6.05097]
[1742417172810,9.00161348,2038.6,2038.4,6.05097]
[1742417173011,4.09620348,2038.6,2038.4,6.05097]
[1742417174216,10.47380983,2038.6,2038.4,6.05097]
[1742417174411,4.90565,2038.5,2038.2,4.90626]
[1742417174742,4.03910895,2038.3,2038.1,10.95744]
[1742417175134,0.05704098,2038.2,2038.1,6.05097]
[1742417175333,0.05704098,2038.2,2038.0,0.2122785]
[1742417175533,4.03910895,2038.1,2038.0,0.2122785]
[1742417175727,4.09611093,2038.1,2038.0,0.2122785]
[1742417176248,4.09611093,2038.1,2038.0,5.1190485]
[1742417176445,0.05700198,2038.1,2038.0,7.35593935]
[1742417176647,4.03910895,2038.3,2038.2,4.90628]
[1742417176849,4.0960741,2038.3,2038.1,4.90637]
[1742417177215,0.05696515,2038.3,2038.1,4.90637]
[1742417177419,4.03910895,2038.4,2038.2,4.90628]
[1742417177723,0.05696515,2038.3,2038.1,4.90637]
[1742417178122,4.03910895,2038.2,2038.1,4.90637]
[1742417178531,4.09607686,2038.2,2038.1,4.90637]
[1742417179055,4.09607686,2038.2,2038.1,10.95734]
[1742417180151,0.05696791,2038.2,2038.1,10.95734]
[1742417180336,0.05696791,2038.2,2038.1,13.87467385]
[1742417180534,4.03910895,2038.4,2038.2,9.81231]
[1742417180731,4.03910895,2038.4,2038.2,9.81229]
[1742417180936,4.03910895,2038.4,2038.3,4.90604]
[1742417181732,4.03910895,2038.4,2038.2,4.90614]
[1742417182141,5.01132385,2038.4,2038.1,10.95749]
[1742417182321,4.03910895,2038.2,2038.1,6.05097]
[1742417183426,4.03910895,2038.2,2038.1,10.9575]
[1742417183749,4.03910895,2038.4,2038.1,6.05097]
[1742417183954,4.03910895,2038.4,2038.2,4.90613]
[1742417184941,4.03910895,2038.4,2038.2,4.90616]
[1742417185449,4.03910895,2038.4,2038.2,9.8123]
[1742417185856,4.03910895,2038.4,2038.2,4.90614]
[1742417186769,5.42411585,2038.4,2038.1,4.90639]
[1742417186957,4.03910895,2038.2,2038.0,11.1699985]
[1742417187564,4.03910895,2038.2,2038.0,6.2632485]
[1742417187937,4.03910895,2038.2,2038.0,11.1699385]
[1742417188141,4.03910895,2038.2,2038.0,6.2632485]
[1742417188457,1.06929387,2038.1,2038.0,6.2632485]
[1742417188656,8.94550895,2038.2,2038.0,6.2632485]
[1742417188958,13.85199895,2038.2,2038.0,6.2632485]
[1742417189270,8.94550895,2038.2,2038.0,6.2632485]
[1742417190539,8.94550895,2038.2,2038.0,0.2122785]
[1742417192067,0.0020035,2038.0,2037.8,4.9071]
[1742417192266,4.04111245,2038.0,2037.7,6.05097]
[1742417192470,5.4265217,2038.0,2037.7,10.95823]
[1742417192770,5.4265217,2038.0,2037.8,4.90724]
[1742417193550,4.04111245,2038.0,2037.8,4.90715]
[1742417193751,4.04111245,2038.0,2037.8,4.9071]
[1742417194155,0.0020035,2038.0,2037.9,5.70751]
[1742417195775,4.03910895,2038.2,2038.0,4.90667]
[1742417196175,0.05630108,2038.1,2038.0,4.90667]
[1742417196485,4.03910895,2038.2,2038.0,4.90667]
[1742417196775,0.05630108,2038.1,2038.0,4.90667]
[1742417197075,8.94542895,2038.2,2037.9,5.70751]
[1742417197278,0.05630574,2038.1,2037.9,5.70738]
[1742417197451,4.03910895,2038.2,2038.0,4.90673]
[1742417197658,0.05629643,2038.1,2037.9,5.70735]
[1742417197861,4.03910895,2038.2,2037.9,10.61422]
[1742417198172,0.05629643,2038.1,2037.9,4.90685]
[1742417198375,4.03910895,2038.0,2037.8,4.90714]
[1742417198680,0.05621841,2037.9,2037.8,4.90714]
[1742417199475,0.05621841,2037.9,2037.7,16.62977]
[1742417199641,0.05621841,2037.9,2037.8,4.90725]
[1742417201660,4.03910895,2038.2,2038.0,4.90673]
[1742417201860,0.05418911,2038.1,2038.0,4.90673]
[1742417202076,4.03910895,2038.2,2038.0,4.90673]
[1742417202255,4.03910895,2038.2,2038.0,4.90663]
[1742417202256,0.05418911,2038.1,2038.0,4.90663]
[1742417202462,10.32994585,2038.4,2038.1,4.90648]
[1742417202657,4.03910895,2038.2,2038.0,5.69106]
[1742417202983,0.05421182,2038.1,2038.0,5.69106]
[1742417203379,4.03910895,2038.2,2038.0,4.90676]
[1742417203585,0.05421182,2038.1,2038.0,4.90662]
[1742417203889,4.03910895,2038.2,2038.0,4.90662]
[1742417204183,0.05421182,2038.1,2038.0,4.90662]
[1742417204558,4.03910895,2038.2,2038.0,4.90662]
[1742417204765,0.05421182,2038.1,2038.0,4.90662]
[1742417205165,5.56271354,2038.2,2037.9,9.81383]
[1742417205366,0.05418388,2038.1,2037.9,9.81383]
[1742417205684,5.56271354,2038.2,2037.8,11.7425]
[1742417205876,4.03910895,2038.0,2037.8,10.95807]
[1742417206076,4.03910895,2038.0,2037.9,4.90701]
[1742417206261,4.03910895,2038.0,2037.8,15.86517]
[1742417206661,4.03910895,2038.0,2037.8,15.86523]
[1742417206870,4.03910895,2038.0,2037.8,10.95807]
[1742417207586,4.03910895,2038.0,2037.8,15.86517]
[1742417208189,4.03910895,2038.0,2037.9,4.90701]
[1742417208392,4.03910895,2038.0,2037.8,15.86517]
[1742417208683,6.18711585,2038.4,2038.1,4.90653]
[1742417208889,6.18711585,2038.4,2038.1,4.90644]
[1742417209186,5.42411585,2038.4,2038.1,4.90639]
[1742417209604,5.42411585,2038.4,2038.1,9.81277]
[1742417210563,5.42411585,2038.4,2038.1,9.81279]
[1742417210974,5.42411585,2038.4,2038.2,4.90628]
[1742417211173,0.05438056,2038.3,2038.2,5.70788]
[1742417212770,0.05438056,2038.3,2038.2,4.90628]
[1742417213379,0.05438056,2038.3,2038.1,4.90638]
[1742417213782,0.05438056,2038.3,2038.1,9.81276]
[1742417214890,0.05438056,2038.3,2038.1,9.81277]
[1742417215067,0.95429451,2038.3,2038.1,4.90638]
[1742417215469,4.03910895,2038.2,2038.0,9.72173]
[1742417215682,0.05441812,2038.1,2037.9,10.95797]
[1742417215970,4.03910895,2038.0,2037.9,10.95781]
[1742417216182,4.093582,2038.0,2037.9,6.05097]
[1742417216989,4.093582,2038.0,2037.9,10.95798]
[1742417217383,0.05447305,2038.0,2037.9,10.95798]
[1742417217703,0.8144,2038.3,2038.1,4.90653]
[1742417217874,4.61112595,2038.3,2038.1,4.90653]
[1742417218190,4.79560895,2038.5,2038.2,4.90628]
[1742417218362,4.03910895,2038.5,2038.3,4.9059]
[1742417219294,4.03910895,2038.5,2038.2,4.90617]
[1742417219981,4.03910895,2038.5,2038.2,9.81233]
[1742417220171,4.03910895,2038.5,2038.2,4.90616]
[1742417220371,6.07849006,2038.5,2038.2,4.90616]
[1742417220767,1.72987213,2038.7,2038.5,4.90544]
[1742417221061,4.03910895,2038.8,2038.5,9.8109]
[1742417221292,4.03910895,2038.8,2038.6,4.90531]
[1742417221663,4.03910895,2038.8,2038.7,4.90508]
[1742417221887,4.03910895,2039.0,2038.7,4.90489]
[1742417222197,5.6029091,2039.0,2038.7,9.80983]
[1742417222411,5.6029091,2039.0,2038.8,4.90484]
[1742417222574,4.03910895,2039.0,2038.8,9.80951]
[1742417222773,4.03910895,2039.0,2038.9,4.9046]
[1742417223116,4.03910895,2039.0,2038.8,5.67907]
[1742417223418,4.03910895,2039.0,2038.8,4.90467]
[1742417223765,4.03910895,2039.1,2038.9,4.9046]
[1742417224388,4.03910895,2039.1,2038.8,4.90482]
[1742417224576,4.03910895,2038.9,2038.8,4.90482]
[1742417225151,4.03910895,2038.9,2038.7,5.67938]
[1742417225431,4.03910895,2038.9,2038.6,10.95627]
[1742417225601,4.03910895,2038.7,2038.6,10.95627]
[1742417226133,0.8249,2039.0,2038.7,4.90507]
[1742417226343,4.86400895,2039.0,2038.7,4.90496]
[1742417226550,9.76837895,2039.0,2038.6,10.95627]
[1742417226720,9.76837895,2039.0,2038.7,4.90506]
[1742417226914,4.03910895,2038.8,2038.6,6.05097]
[1742417227117,8.94394895,2038.8,2038.6,6.05097]
[1742417227345,4.03910895,2038.8,2038.6,6.05097]
[1742417227548,4.03910895,2038.8,2038.6,10.95628]
[1742417229149,4.03910895,2038.8,2038.6,6.05097]
[1742417229832,8.94399895,2038.8,2038.6,6.05097]
[1742417230024,4.90489,2038.8,2038.6,6.05097]
[1742417230230,4.03910895,2038.7,2038.6,6.05097]
[1742417230425,9.74592604,2038.7,2038.2,10.95715]
[1742417230630,4.03910895,2038.4,2038.2,10.95715]
[1742417231038,4.03910895,2038.4,2038.2,6.05097]
[1742417231243,8.94503895,2038.4,2038.0,10.95757]
[1742417231444,4.03910895,2038.2,2038.0,6.05097]
[1742417231747,4.03910895,2038.2,2037.9,5.70173]
[1742417231948,4.03910895,2038.2,2037.9,10.60864]
[1742417232353,4.03910895,2038.2,2038.0,4.9067]
[1742417232520,4.03910895,2038.2,2037.9,5.7017]
[1742417233049,4.03910895,2038.2,2037.9,5.70167]
[1742417233221,4.03910895,2038.2,2037.9,4.90687]
[1742417233752,4.90653,2038.1,2037.8,9.71918]
[1742417233950,4.03910895,2038.0,2037.8,4.90718]
[1742417234256,4.03910895,2038.0,2037.8,10.95815]
[1742417234856,4.03910895,2038.0,2037.8,10.95812]
[1742417235065,4.03910895,2038.0,2037.9,4.90701]
[1742417235644,4.03910895,2038.2,2037.9,9.81378]
[1742417235850,4.03910895,2038.2,2038.0,4.90664]
[1742417236035,4.03910895,2038.2,2037.9,4.90693]
[1742417236420,4.03910895,2038.2,2037.9,4.90683]
[1742417236835,4.03910895,2038.2,2038.0,4.90653]
[1742417237241,4.03910895,2038.2,2038.1,4.90653]
[1742417237454,4.03910895,2038.4,2038.0,0.7942]
[1742417237658,4.03910895,2038.4,2038.2,4.90615]
[1742417237827,4.03910895,2038.4,2038.3,4.90604]
[1742417238924,4.03910895,2038.4,2038.2,4.90615]
[1742417240130,4.03910895,2038.4,2038.0,6.05097]
[1742417240131,0.04871709,2038.3,2038.0,6.05097]
[1742417240362,4.03910895,2038.1,2038.0,6.05097]
[1742417240559,4.03910895,2038.1,2038.0,10.95774]
[1742417241058,4.08942649,2038.1,2038.0,6.05097]
[1742417241428,8.99595649,2038.1,2038.0,6.05097]
[1742417241628,9.81075649,2038.1,2038.0,6.05097]
[1742417241830,11.37128349,2038.1,2038.0,6.05097]
[1742417242461,6.46475349,2038.1,2038.0,6.05097]
[1742417243046,5.64995349,2038.1,2038.0,6.05097]
[1742417243253,0.05031754,2038.1,2038.0,10.95774]
[1742417243554,4.03910895,2038.3,2038.1,4.90644]
[1742417243948,4.03910895,2038.3,2038.2,4.90628]
[1742417244341,4.03910895,2038.3,2038.1,4.90644]
[1742417244664,4.03910895,2038.3,2038.1,4.90639]
[1742417244865,0.8302,2038.7,2038.5,4.90537]
[1742417245157,4.03910895,2038.8,2038.6,4.90515]
[1742417245663,8.94409895,2038.8,2038.4,9.81137]
[1742417245866,4.03910895,2038.6,2038.5,4.90555]
[1742417246233,5.73487,2038.9,2038.6,4.9052]
[1742417246234,4.03910895,2038.8,2038.6,4.9052]
[1742417246673,4.03910895,2038.8,2038.7,4.90508]
[1742417247036,4.03910895,2038.8,2038.6,4.90529]
[1742417247537,4.03910895,2038.8,2038.6,9.81046]
[1742417247868,4.03910895,2039.0,2038.8,4.90469]
[1742417248438,4.03910895,2039.0,2038.9,4.9046]
[1742417248741,3.0,2039.1,2038.9,4.9046]
[1742417248942,4.03910895,2039.2,2038.9,4.9046]
[1742417249252,4.03910895,2039.0,2038.9,4.9046]
[1742417251640,4.03910895,2039.2,2039.1,4.90412]
[1742417252371,4.03910895,2039.2,2039.0,4.9043]
[1742417252666,4.03910895,2039.2,2038.9,11.78747]
[1742417252967,4.03910895,2039.0,2038.9,10.95547]
[1742417253466,4.03910895,2039.2,2039.0,4.90429]
[1742417254167,4.03910895,2039.2,2039.0,4.90419]
[1742417255339,4.03910895,2039.2,2039.0,9.80846]
[1742417256050,0.04779763,2039.1,2039.0,9.80846]
[1742417256269,4.03910895,2039.2,2039.0,4.90419]
[1742417256470,0.7692,2039.6,2039.3,4.90359]
[1742417256672,4.03910895,2039.5,2039.2,4.90386]
[1742417256976,4.03910895,2039.5,2039.3,4.90358]
[1742417257866,4.03910895,2039.5,2039.4,4.9034]
[1742417260043,4.03910895,2039.5,2039.3,4.90349]
[1742417260248,0.7817,2039.4,2039.2,10.85997]
[1742417260454,4.03910895,2039.3,2039.2,10.85997]
[1742417260877,4.03910895,2039.3,2039.2,6.05097]
[1742417261073,4.03910895,2039.3,2039.1,6.05097]
[1742417262754,8.94275895,2039.3,2039.1,6.05097]
[1742417263152,4.03910895,2039.3,2039.1,6.05097]
[1742417264574,4.03910895,2039.3,2039.1,10.95505]
[1742417264743,4.03910895,2039.3,2039.1,6.05097]
[1742417265575,8.94279895,2039.3,2039.1,6.05097]
[1742417267094,8.94279895,2039.3,2039.0,6.05097]
[1742417267251,4.03910895,2039.1,2039.0,6.05097]
[1742417269086,4.03910895,2039.1,2039.0,10.95533]
[1742417270186,4.03910895,2039.1,2039.0,6.05097]
[1742417270382,4.03910895,2039.1,2039.0,10.95533]
[1742417271105,5.6976,2039.6,2039.1,4.90411]
[1742417271255,4.03910895,2039.3,2039.1,4.90403]
[1742417271459,9.80702,2039.4,2039.0,10.95522]
[1742417271680,4.03910895,2039.2,2039.0,15.85946]
[1742417271893,4.03910895,2039.2,2039.1,4.90412]
[1742417272280,4.03910895,2039.2,2039.0,10.95524]
[1742417272454,4.03910895,2039.2,2039.0,6.05097]
[1742417272854,8.94299895,2039.2,2039.0,6.05097]
[1742417273188,4.90412,2039.1,2039.0,6.05097]
[1742417273394,9.80841,2039.1,2038.7,4.90499]
[1742417273689,4.03910895,2038.8,2038.7,4.90499]
[1742417277602,4.03910895,2038.8,2038.6,9.81037]
[1742417278269,4.90517,2038.7,2038.3,10.95679]
[1742417278468,4.03910895,2038.4,2038.3,6.05097]
[1742417278673,4.03910895,2038.4,2038.3,4.90604]
[1742417278894,4.03910895,2038.6,2038.4,4.90571]
[1742417279061,4.03910895,2038.6,2038.5,4.90556]
[1742417283697,3.0,2039.0,2038.7,4.90506]
[1742417283867,4.03910895,2038.9,2038.7,4.90506]
[1742417284600,4.03910895,2038.9,2038.7,9.81003]
[1742417284779,4.03910895,2038.9,2038.7,4.90497]
[1742417284976,4.03910895,2038.9,2038.8,5.72934]
[1742417285305,4.03910895,2039.1,2039.0,4.90436]